Cogmind - Beta 14 @@@ ROGUE MODE // 2024.08.25 @ 13:16:57 Player: cabin Result: Destroyed by G-47 Trooper with Particle Gun Performance ------------- Evolutions (2) 1000 Regions Visited (3) 600 Robots Destroyed (2) 10 Value Destroyed (81) 81 Prototype IDs (2) 40 Alien Tech Used (0) 0 Bonus (0) 0 TOTAL SCORE: 1731 Bonus ------- None Cogmind --------- Core Integrity 0/550 Matter 212/300 Energy 90/100 System Corruption 0% Temperature Cool (36) Movement Core (50) Location -8/Materials Parts ------- > --- POWER (1) -------- (None) > --- PROPULSION (2) --- Improved Flight Unit > --- UTILITY (6) ------ Transport Network Coupler Transport Network Coupler > --- WEAPON (2) ------- (None) > --- INVENTORY (5) ---- Datajack Peak State ------------ > --- POWER ------------ (None) > --- PROPULSION ------- Armored Treads Improved Flight Unit > --- UTILITY ---------- Improved Sensor Array Transport Network Coupler Transport Network Coupler Trap Extractor > --- WEAPON ----------- Improved Assault Rifle > --- INVENTORY -------- Light Nuclear Core Datajack [Rating: 16] Favorites ----------- Power Ion Engine Engine Ion Engine Propulsion Light Treads Treads Light Treads Flight Unit Flight Unit Utility Transport Network Coupler Device Trap Extractor Processor Transport Network Coupler Weapon Assault Rifle Energy Gun EM Pulse Gun Ballistic Gun Assault Rifle Build | -11 -10 -9 -8 ------- Run | Yrd Mat Mat Mat Slots Evolved 4 | . . 2 2 Power . | . . . . Propulsion . | . . . . Utility 4 | . . 2 2 Weapon . | . . . . Parts Attached 17 | 5 . 7 5 Power 3 | 1 . 1 1 Engine 2 | 1 . 1 . Core 1 | . . . 1 Reactor . | . . . . Propulsion 7 | 2 . 3 2 Treads 3 | 2 . . 1 Leg . | . . . . Wheel . | . . . . Hover . | . . . . Flight 4 | . . 3 1 Utility 4 | . . 3 1 Device 2 | . . 1 1 Storage . | . . . . Processor 2 | . . 2 . Hackware . | . . . . Protection . | . . . . Artifact . | . . . . Weapon 3 | 2 . . 1 Energy Gun 1 | 1 . . . Energy Cannon . | . . . . Ballistic Gun 2 | 1 . . 1 Ballistic Cannon . | . . . . Launcher . | . . . . Special Weapon . | . . . . Impact Weapon . | . . . . Slashing Weapon . | . . . . Piercing Weapon . | . . . . Special Melee Weapon . | . . . . Unidentified Prototypes 2 | . . 1 1 Parts Lost 7 | . 1 3 3 Power 2 | . . 1 1 Propulsion 2 | . . 2 . Utility 1 | . . . 1 Weapon 2 | . 1 . 1 Highest Loss Streak 3 | . 1 3 3 To Critical Strikes . | . . . . Average Slot Usage (%) 59 | . 66 49 48 Engine 10 | . 14 10 . Treads 19 | . 28 5 4 Flight 4 | . . 16 9 Device 4 | . . 9 16 Processor 4 | . . 5 18 Energy Gun 5 | . 9 . . Ballistic Gun 9 | . 14 2 . Peak Build Rating 16 | 5 5 10 16 Average Rating 5 | 4 4 6 11 On Entrance 4 | . 5 4 8 Naked Turns . | . . . . Heaviest Build 9 | 9 9 9 6 Greatest Support 40 | 40 40 40 20 Greatest Overweight (x) 1 | 1 . 1 1 Average Overweight (x) . | . . . . Largest Inventory Capacity 5 | 5 5 5 5 Average Capacity 5 | 5 5 5 5 Most Carried 5 | . 5 5 5 Average Carried 2 | . 2 4 2 Final Capacity 5 | 5 5 5 5 Final Carried 5 | . 5 4 1 Class Distribution -------------------- 100% | Mutant Dominant Class ---------------- Mutant | -10/Materials Mutant | -9/Materials Mutant | -8/Materials Resources | -11 -10 -9 -8 ----------- Run | Yrd Mat Mat Mat Matter Collected 281 | 250 31 . . Remotely . | . . . . Salvage Created 108 | . 108 . . Parts 2 | . 2 . . Haulers Intercepted . | . . . . Recyclers Shooed . | . . . . Parts Field Recycled . | . . . . Retrieved Matter . | . . . . Parts Self-Destructed . | . . . . Prevented . | . . . . Kills | -11 -10 -9 -8 ------- Run | Yrd Mat Mat Mat Combat Hostiles Destroyed 2 | . 2 . . Guns 2 | . 2 . . Classes Destroyed 1 | . 1 . . Grunt 2 | . 2 . . Best Kill Streak 2 | . 2 . . Combat Bots Only 2 | . 2 . . Max Kills in Single Turn 1 | . 1 . . Gunslinging . | . . . . Exploded . | . . . . Melee . | . . . . Uniques/NPCs Destroyed . | . . . . Combat | -11 -10 -9 -8 -------- Run | Yrd Mat Mat Mat Hostile Shots Fired 188 | . 31 57 100 Missed 71 | . 9 27 35 Damage Taken 1711 | . 302 300 1109 Core 787 | . 47 190 550 Absorbed by Shields . | . . . . Core Remaining (%) 77 | 100 81 52 . Volleys Fired 13 | . 12 . 1 Largest 2 | . 2 . 1 Hottest 60 | . 60 . 23 Shots Fired 21 | . 20 . 1 Gun 21 | . 20 . 1 Cannon . | . . . . Launcher . | . . . . Special . | . . . . Kinetic 13 | . 12 . 1 Thermal . | . . . . Explosive . | . . . . Electromagnetic 8 | . 8 . . Robot Hit Streak 8 | . 8 . 3 Robot Miss Streak 2 | . 2 . . Penetration Max . | . . . . Secondary Targets . | . . . . Shots Hit Robots 15 | . 14 . 1 Core Hits 5 | . 5 . . Critical Kills . | . . . . Critical Parts Destroyed . | . . . . Critical Strikes . | . . . . Melee Attacks . | . . . . Impact . | . . . . Slashing . | . . . . Piercing . | . . . . Sneak Attacks . | . . . . Combat Hostiles . | . . . . Follow-up Attacks . | . . . . Damage Inflicted 209 | . 193 . 16 Guns 207 | . 193 . 14 Cannons . | . . . . Explosions . | . . . . Melee . | . . . . Ramming 2 | . . . 2 Kinetic 133 | . 119 . 14 Thermal . | . . . . Explosive . | . . . . Electromagnetic 74 | . 74 . . Impact . | . . . . Slashing . | . . . . Piercing . | . . . . Highest Corruption . | . . . . Average Corruption . | . . . . Corruption Purged . | . . . . Corruption Blocked . | . . . . Overload Shots . | . . . . Overflow Damage . | . . . . Projectiles . | . . . . Explosions . | . . . . Melee . | . . . . Knockbacks . | . . . . Impact . | . . . . Kinetic . | . . . . Secondary . | . . . . Self-Inflicted Damage 1 | . . . 1 Shots . | . . . . Rammed 1 | . . . 1 Targets Rammed 1 | . . . 1 Kicked . | . . . . Crushed . | . . . . Highest Temperature 348 | . 66 348 14 Average Temperature 89 | . 37 258 10 Received Heat Transfer 774 | . 198 72 504 Siege Activations . | . . . . Robots Corrupted . | . . . . Combat Hostiles . | . . . . Parts Fried . | . . . . Impact Corruptions . | . . . . Robots Melted . | . . . . Combat Hostiles . | . . . . Parts Melted . | . . . . Heat Transferred . | . . . . Parts Sabotaged . | . . . . Parts Stolen . | . . . . Parts Stripped . | . . . . Power Chain Reactions . | . . . . Alert | -11 -10 -9 -8 ------- Run | Yrd Mat Mat Mat Peak Influence 147 | . 86 60 147 Initial 12 | . . . 12 Average 31 | . 25 25 86 Maximum Alert Level . | . . . . Low Security (%) 100 | 100 100 100 100 Level 1 . | . . . . Level 2 . | . . . . Level 3 . | . . . . Level 4 . | . . . . Level 5 . | . . . . High Security . | . . . . Max Security . | . . . . Squads Dispatched 7 | . . 3 4 Investigation 2 | . . 2 . Extermination . | . . . . Reinforcement 5 | . . 1 4 Assault . | . . . . Garrison . | . . . . Intercept . | . . . . Searches Triggered . | . . . . Construction Impeded . | . . . . Haulers Reinforced . | . . . . Active Scanning Responses . | . . . . Cargo Convoy Interrupts . | . . . . Stealth | -11 -10 -9 -8 --------- Run | Yrd Mat Mat Mat Distress Signals 3 | . 1 . 2 Communications Jammed . | . . . . Distress Signals . | . . . . Times Spotted 35 | . 7 13 15 Peak Tracking Total 13 | . 4 13 11 Tactical Retreats 1 | . . . 1 Traps | -11 -10 -9 -8 ------- Run | Yrd Mat Mat Mat Traps Triggered 1 | . . 1 . Indirectly . | . . . . Trap Hack Attempts . | . . . . Triggered . | . . . . Disarmed . | . . . . Reprogrammed . | . . . . Reused . | . . . . Traps Extracted . | . . . . Installed . | . . . . Triggered . | . . . . Machines | -11 -10 -9 -8 ---------- Run | Yrd Mat Mat Mat Machines Disabled . | . . . . Max in Single Turn . | . . . . Machines Repaired . | . . . . Machines Dismantled . | . . . . Machines Sabotaged . | . . . . Overloaded Fab Kills . | . . . . Hacking | -11 -10 -9 -8 --------- Run | Yrd Mat Mat Mat Machines Accessed 7 | . 4 3 . Terminals 4 | . 3 1 . Fabricators . | . . . . Repair Stations 1 | . . 1 . Recycling Units 2 | . 1 1 . Scanalyzers . | . . . . Garrison Access . | . . . . Total Hacks 16 | . 10 6 . Successful 5 | . 4 1 . Failed 11 | . 6 5 . Catastrophic 1 | . . 1 . Database Lockouts . | . . . . Manual 1 | . 1 . . Terminals 9 | . 7 2 . Fabricators . | . . . . Repair Stations 3 | . . 3 . Recycling Units 4 | . 3 1 . Scanalyzers . | . . . . Garrison Access . | . . . . Terminal Hacks 4 | . 4 . . Part Schematic 1 | . 1 . . Robot Analysis 1 | . 1 . . Emergency Access Points 1 | . 1 . . Reinforcement Status 1 | . 1 . . Fabricator Hacks . | . . . . Repair Station Hacks . | . . . . Recycling Unit Hacks 1 | . . 1 . Retrieve Components 1 | . . 1 . Scanalyzer . | . . . . Garrison Access Hacks . | . . . . Unauthorized Hacks . | . . . . Terminals . | . . . . Fabricators . | . . . . Repair Stations . | . . . . Recycling Units . | . . . . Scanalyzers . | . . . . Garrison Access . | . . . . Data Cores Recovered . | . . . . Used . | . . . . Hacking Detections 3 | . 1 2 . Full Trace Events 2 | . . 2 . Feedback Events . | . . . . Feedback Blocked . | . . . . Robot Schematics Acquired . | . . . . Robots Built . | . . . . Authchips . | . . . . Time . | . . . . Total Robot Build Rating . | . . . . Part Schematics Acquired 1 | . 1 . . Parts Built . | . . . . Authchips . | . . . . Time . | . . . . Total Part Build Rating . | . . . . Parts Repaired . | . . . . Time . | . . . . Parts Recycled . | . . . . Recycled Matter . | . . . . Retrieved Matter . | . . . . Retrieved Components 3 | . . 3 . Parts Scanalyzed . | . . . . Part Schematics Acquired . | . . . . Parts Damaged . | . . . . Bothacking | -11 -10 -9 -8 ------------ Run | Yrd Mat Mat Mat Used RIF Installer . | . . . . Robots Hacked . | . . . . Non-combat . | . . . . Combat . | . . . . Robot Hacks Applied . | . . . . Relay Couplers Released . | . . . . Fabnet Peak Effective % . | . . . . Robots Rewired . | . . . . Allies Hacked . | . . . . Hacks Repelled . | . . . . Allies | -11 -10 -9 -8 -------- Run | Yrd Mat Mat Mat Total Allies . | . . . . Largest Group . | . . . . Highest-Rated Group . | . . . . Highest-Rated Ally . | . . . . Total Orders . | . . . . Ally Attacks . | . . . . Total Damage . | . . . . Kills . | . . . . Allies Corrupted . | . . . . Allies Melted . | . . . . Intel | -11 -10 -9 -8 ------- Run | Yrd Mat Mat Mat Robot Analysis Total 1 | . 1 . . Derelict Logs Recovered . | . . . . Drone Launches . | . . . . Drone Recoveries . | . . . . Exploration | -11 -10 -9 -8 ------------- Run | Yrd Mat Mat Mat Turns Passed 732 | 90 408 116 118 Spaces Moved 626 | 56 230 193 147 Core 21 | 6 . 5 10 Treads 322 | 50 230 14 28 Legs . | . . . . Wheels . | . . . . Hover . | . . . . Flight 283 | . . 174 109 Fastest Speed 37 | 50 160 37 40 Average Speed 102 | 150 160 46 65 Slowest Speed 170 | 160 160 160 170 Overloaded Moves . | . . . . Propulsion Burnouts . | . . . . Robots Hopped 2 | . . 2 . Cave-ins Triggered . | . . . . Exploration Rate (%) 21 | 5 33 23 25 Regions Visited 3 Branch Regions . Pre-discovered Areas . | . . . . Known Exits Taken . | . . . . Unknown Exits Taken 3 | 1 1 1 . Scrap Searched . | . . . . Spaces Dug . | . . . . Terrain Destroyed . | . . . . Melee . | . . . . Projectile . | . . . . AOE . | . . . . Terrain Rammed . | . . . . Walls Destroyed . | . . . . Machines Disabled . | . . . . Actions | -11 -10 -9 -8 --------- Run | Yrd Mat Mat Mat Total 695 | 60 252 216 167 Wait 21 | . . 10 11 Move 619 | 55 229 188 147 Hop 2 | . . 2 . Pick Up 12 | . 8 4 . Fast Attach 10 | 5 . 3 2 Attach 4 | . . 1 3 Detach 1 | . . . 1 Swap 3 | . . 3 . Drop 9 | . 3 5 1 Fire 13 | . 12 . 1 Melee . | . . . . Ram 1 | . . . 1 Kick . | . . . . Crush . | . . . . Escape Stasis . | . . . . Rewire . | . . . . Trap . | . . . . Miscellaneous . | . . . . Route ------- -11/Scrapyard -10/Materials -9/Materials -8/Materials (discovered 1 exit: [*Fac]) History --------- Turn | Location | Event 28 | -11/Scrapyard | Discovered new exit (range 15) 91 | -11/Scrapyard | Entered Materials 301 | -10/Materials | Build established: Mutant 377 | -10/Materials | Discovered new exit (range 7) 499 | -10/Materials | Entered another Materials area 499 | -9/Materials | Evolved 2 slots: Utility x2 613 | -9/Materials | Discovered new exit (range 4) 615 | -9/Materials | Entered another Materials area 615 | -8/Materials | Evolved 2 slots: Utility x2 644 | -8/Materials | Lost 3 parts (1p2n) 719 | -8/Materials | Discovered new exit (range 13) 726 | -8/Materials | Core integrity fell below 50% 733 | -8/Materials | Core integrity fell below 20% 733 | -8/Materials | Destroyed by G-47 Trooper with Particle Gun Last Messages --------------- 00718_ K-01 Serf collects debris. 00719_ EXIT=FOUND 00723_ K-01 Serf collects debris. 00726_ Arm. Treads severed. 00726_ Critical hit (Burn: +37). 00726_ Slammed into C-17 Slicer. 00726_ Destabilizing: System interference. 00726_ Transport Network Coupler temporarily disabled. 00726_ Imp. Assault Rifle temporarily disabled. 00726_ Transport Network Coupler temporarily disabled. 00727_ K-01 Serf collects debris. 00727_ Imp. Assault Rifle destroyed. 00729_ Imp. Sensor Array severed. 00730_ Lgt. Nuclear Core destroyed. 00731_ Trap Extractor destroyed. 00733_ Knocked back. 00733_ K-01 Serf collects debris. 00733_ Critical hit (Burn: +37). Map ----- +----------------------------------------------------+ | #? """????????????????????????????????? | | # """????????????????????????????????? | | # "" #???????????????????????????????? | | / """????????????????????????????????? | | # ""#???????????????????????????????? | | #! """#???????????????????????????????? | | #? " ????????????????????????????????? | | #? ????????????????????????????????? | | #?? #####???????????????????????????????? | | #??##??????????????????? ???????????????? | | #?????????????????????# ??????????????? | | #?????????????????????# ??????????????? | | #???????? ??????????# ??????????????? | | #???? ??? ??????????# ??????????????? | | #####/### #?????????+ ??????????????? | | ## # #?????????# ??????????????? | | ## # #?????????# ??????????????? | | ## # #?????????# #####?????????? | | ## # #?????????# ??????????? | | ## # #?????????# < ??????????? | | ## # #?????????# ???????????? | | ## # #?????????# #???????????? | | ## # #?????????# %H##??????????? | | ## # #?????????# ##?????????? | | ## # #?????????# #?????????? | | ## ] # #?????????## @ ###?????????? | | ## # #??????????## #???????????? | | ## # #??????????#; ##??????????? | | ######+## ############ #??????????? | | c #??????????? | | g c !#??????????? | | g c#??????????? | | ######+################# Y= #??????????? | | ???????????????????????#k ####??????????? | | ???????????????????????# #?????????????? | | ???????????????????????# #?????????????? | | ???????????????????????# #?????????????? | | ???????????????????????# #?????????????? | | ??????????????????????? #?????????????? | | ??????????????????????? #?????????????? | | ?????????????????????? #?????????????? | | ?????????????????????? #?????????????? | | ????????????????????? #?????????????? | | ??????????????????????## #?????????????? | | ???????????????????????? #?????????????? | | ???????????????????????? ??????????????? | | ???????????????????????? ??????????????? | | ???????????????????????? ??????????????? | | ????????????????????????????????????????? | | ????????????????????????????????????????? | +----------------------------------------------------+ Best States ------------- Heat Dissipation 31 Energy Generation 10 Energy Capacity 250 Matter Stores 300 Matter Capacity 300 Sight Range 16 Robot Scan Range 15 Terrain Scan Density 10 Evasion (%) 62 Recoil Reduction 2 Trap Extractor Capacity 4 Item Schematics ----------------- Utility Shielding | -10/Materials | Hacked Robot Schematics ------------------ None Fabricated ------------ Nothing Alien Tech Used ----------------- None Achievements -------------- None Challenges ------------ None Game ------ Seed SystemMicroMagmablaster Manual? 0 Play Time 00:12:38 Cumulative 11.7 hours Start 2024.08.25 @ 12:51:58 End 2024.08.25 @ 13:16:57 Sessions 1 Manual Loads 0 Difficulty Rogue Special Mode None Game No. 30 Rogue 29 Adventurer 1 Explorer 0 Win Type - Total 0 Types 0/0/0/0/0/0/0/0/0 Lore% 5 Gallery% 17 Achievement% 15 Wizard Run 0 Options --------- Layout 2 ASCII 0 Keyboard 1 Movement Numpad Keybinds 0 Fullscreen 1 Font 24/Smallcaps Map View 50x44 Zoom Use 0% Tactical HUD 1 Map Filters NONE Filters NONE Steam 1 RUN: 53524ea8-ec81-4818-ae87-0804eaf6c1af